bitfinex-derivatives/quotes_SOLF0:USTF0_20241230
["timestamp","ask_amount","ask_price","bid_price","bid_amount"]
[1735588409211,11.17170843,195.91,195.84,8.03170843]
[1735588409815,11.17170843,195.91,195.85,4.0340219]
[1735588410115,11.17170843,195.91,195.84,8.03170843]
[1735588410316,11.17170843,195.91,195.87,2.5558]
[1735588411618,8.03170843,195.89,195.87,2.5558]
[1735588412217,8.03170843,195.89,195.82,8.03170843]
[1735588412418,8.03170843,195.87,195.78,29.57201948]
[1735588412619,8.03170843,195.85,195.79,12.06300025]
[1735588412825,11.17170843,195.85,195.79,8.03170843]
[1735588413220,11.17170843,195.85,195.81,2.5565]
[1735588413621,11.17170843,195.85,195.79,8.03170843]
[1735588413821,3.14,195.85,195.8,4.02914591]
[1735588414021,3.14,195.85,195.81,4.02914591]
[1735588414218,3.14,195.85,195.79,8.03170843]
[1735588414421,3.14,195.85,195.83,2.5563]
[1735588417027,3.14,195.85,195.79,8.03170843]
[1735588417228,3.14,195.85,195.84,2.5562]
[1735588417629,3.12,195.89,195.87,2.5558]
[1735588418324,3.12,195.89,195.83,8.03170843]
[1735588418525,3.12,195.89,195.86,2.556]
[1735588418835,3.12,195.89,195.83,8.03170843]
[1735588419734,3.12,195.89,195.86,2.556]
[1735588422736,3.12,195.89,195.85,2.5561]
[1735588423136,3.12,195.89,195.81,8.03170843]
[1735588423333,3.12,195.89,195.86,2.556]
[1735588428439,3.12,195.89,195.83,8.03170843]
[1735588428736,3.12,195.89,195.88,2.5557]
[1735588428934,3.12,195.91,195.85,8.03170843]
[1735588429136,3.12,195.91,195.86,2.5559]
[1735588429337,3.12,195.91,195.85,8.03170843]
[1735588429733,8.03170843,195.9,195.83,8.03170843]
[1735588430036,8.03170843,195.88,195.81,8.03170843]
[1735588430627,8.03170843,195.88,195.85,2.556]
[1735588430834,8.03170843,195.88,195.81,8.03170843]
[1735588431234,8.03170843,195.9,195.83,8.03170843]
[1735588432440,8.03170843,195.9,195.86,2.5559]
[1735588433732,32.3176918,195.92,195.89,2.5556]
[1735588433733,40.34940023,195.92,195.89,2.5556]
[1735588433931,11.15170843,195.92,195.89,2.5556]
[1735588434333,3.12,195.91,195.89,2.5556]
[1735588434737,3.12,195.91,195.88,2.5557]
[1735588436043,8.03170843,195.92,195.85,8.03170843]
[1735588436340,3.12,195.91,195.88,2.5556]
[1735588436544,8.03170843,195.9,195.81,15.0370383]
[1735588436746,8.03170843,195.88,195.82,4.03192559]
[1735588437045,8.03170843,195.88,195.81,15.0370383]
[1735588437340,8.03170843,195.86,195.81,7.00532987]
[1735588437543,8.03170843,195.84,195.78,7.00532987]
[1735588437744,8.03170843,195.8,195.78,9.56222987]
[1735588438448,3.12,195.81,195.79,2.5569]
[1735588439739,3.12,195.81,195.8,2.5568]
[1735588440549,3.12,195.81,195.8,6.59764647]
[1735588440740,8.03170843,195.91,195.89,2.5556]
[1735588440944,3.12,195.92,195.86,8.03170843]
[1735588441349,3.12,195.92,195.88,2.5556]
[1735588442246,3.12,195.92,195.83,12.52475291]
[1735588442550,3.12,195.92,195.89,2.5556]
[1735588442751,3.12,195.92,195.83,12.52475291]
[1735588442951,3.12,195.92,195.84,4.04071802]
[1735588443151,3.12,195.92,195.85,4.04071802]
[1735588443351,3.12,195.92,195.86,4.04071802]
[1735588443543,3.12,195.92,195.87,4.04071802]
[1735588443744,3.12,195.92,195.87,2.5558]
[1735588444253,3.12,195.92,195.83,19.53008278]
[1735588444452,3.12,195.92,195.88,2.5557]
[1735588444852,3.12,195.92,195.83,12.52475291]
[1735588445051,3.12,195.92,195.89,2.5555]
[1735588445450,3.12,195.92,195.83,12.52475291]
[1735588445651,3.12,195.92,195.87,2.5558]
[1735588447756,3.12,195.92,195.88,2.5557]
[1735588447952,3.12,195.92,195.83,12.52475291]
[1735588448255,3.12,195.92,195.86,2.5559]
[1735588448455,3.12,195.92,195.87,4.04466952]
[1735588448655,3.12,195.92,195.83,12.52475291]
[1735588448853,3.12,195.92,195.84,4.04585562]
[1735588449049,3.12,195.92,195.89,2.5555]
[1735588449557,3.12,195.92,195.88,2.5557]
[1735588452462,5.6753,195.92,195.87,2.5558]
[1735588452757,5.6753,195.92,195.83,12.52475291]
[1735588452961,5.6753,195.92,195.86,2.5559]
[1735588453259,5.6753,195.92,195.87,4.04753273]
[1735588453567,3.12,195.92,195.82,7.00532987]
[1735588453857,3.12,195.92,195.83,4.04949637]
[1735588454056,3.12,195.92,195.84,4.04949637]
[1735588454258,3.12,195.92,195.85,4.04949637]
[1735588454461,3.12,195.92,195.86,4.04949637]
[1735588454660,2.556,195.87,195.82,2.5565]
[1735588454862,3.12,195.86,195.81,45.06908946]
[1735588455055,3.12,195.86,195.82,4.05166204]
[1735588455362,3.12,195.86,195.81,45.06908946]
[1735588455561,3.12,195.86,195.76,28.02131948]
[1735588455757,3.12,195.86,195.77,4.05341652]
[1735588455956,3.12,195.86,195.81,2.5566]
[1735588455957,2.5562,195.85,195.81,2.5566]
[1735588457459,4.6447,195.89,195.77,12.52475291]
[1735588457657,3.12,195.88,195.78,4.05063591]
[1735588457860,3.12,195.88,195.79,4.05063591]
[1735588458057,3.12,195.88,195.8,4.05063591]
[1735588458255,3.12,195.88,195.81,4.05063591]
[1735588458463,3.12,195.88,195.77,12.52475291]
[1735588458464,3.12,195.88,195.85,2.556]
[1735588458960,2.5552,195.92,195.8,12.52475291]
[1735588459159,3.12,195.91,195.81,4.04780735]
[1735588459361,3.12,195.91,195.82,4.04780735]
[1735588459556,3.12,195.91,195.83,4.04780735]
[1735588459761,3.12,195.91,195.86,2.5559]
[1735588460260,3.12,195.91,195.8,12.52475291]
[1735588460460,3.12,195.9,195.81,4.04866083]
[1735588460763,3.12,195.9,195.87,2.5558]
[1735588465868,3.12,195.9,195.89,2.5556]
[1735588466060,3.12,195.9,195.89,6.60601367]
[1735588466261,3.12,195.9,195.89,6.60574084]
[1735588467865,3.12,195.9,195.89,2.5556]
[1735588472069,3.12,195.92,195.9,2.5554]
[1735588473170,3.12,195.92,195.91,2.5553]
[1735588473865,4.5309,195.97,195.91,2.5553]
[1735588474067,3.12,195.96,195.92,2.5552]
[1735588474774,3.12,195.96,195.89,12.52446574]
[1735588475167,3.12,195.96,195.9,4.04870179]
[1735588475466,3.12,195.96,195.91,4.04870179]
[1735588475667,3.12,195.96,195.89,12.52446574]
[1735588475867,3.12,195.96,195.9,4.04905411]
[1735588476067,3.12,195.96,195.91,4.04905411]
[1735588476269,3.12,195.96,195.89,12.52446574]
[1735588476470,3.12,195.96,195.92,2.5551]
[1735588479675,3.12,195.96,195.89,12.52446574]
[1735588479879,3.12,195.96,195.9,4.04820016]
[1735588480172,3.12,195.96,195.89,12.52446574]
[1735588480372,3.12,195.96,195.9,4.0476063]
[1735588480574,3.12,195.96,195.89,12.52446574]
[1735588480773,3.12,195.96,195.9,4.04765568]
[1735588480973,3.12,195.96,195.89,12.52446574]
[1735588481173,3.12,195.96,195.9,4.04733452]
[1735588481474,3.12,195.96,195.91,4.04733452]
[1735588481673,3.12,195.96,195.93,2.555]
[1735588483582,3.12,195.95,195.93,2.555]
[1735588487780,3.12,195.95,195.91,2.5552]
[1735588488388,3.12,195.95,195.92,2.5552]
[1735588491788,10.56812952,195.97,195.92,2.5552]
[1735588492092,1.5122,196.03,195.84,8.2389]
[1735588492093,84.97668654,196.11,195.96,8.01352952]
[1735588492283,8.01352952,196.09,195.97,8.76047591]
[1735588492488,8.01352952,196.09,196.03,2.5537]
[1735588494790,2.5521,196.16,196.05,2.5534]
[1735588494988,8.01352952,196.11,196.04,8.01352952]
[1735588495187,11.13352952,196.11,196.04,8.01352952]
[1735588495388,8.01352952,196.11,196.04,8.01352952]
[1735588496487,8.01352952,196.11,196.06,2.5533]
[1735588497397,8.01352952,196.11,196.06,2.5534]
[1735588497586,8.01352952,196.11,196.04,8.01352952]
[1735588497792,3.12,196.12,196.06,8.01352952]
[1735588497987,8.01352952,196.13,196.06,8.01352952]
[1735588498194,3.12,196.14,196.08,8.01352952]
[1735588498591,3.12,196.14,196.09,2.5529]
[1735588500598,8.01352952,196.13,196.07,2.5531]
[1735588500799,8.01352952,196.13,196.06,8.01352952]
[1735588501397,8.01352952,196.13,196.08,2.5531]
[1735588501900,3.12,196.14,196.1,2.5529]
[1735588502497,3.1681,196.15,196.1,8.01352952]
[1735588502697,1.5924,196.15,196.1,8.01352952]
[1735588503491,1.5924,196.15,196.11,2.5527]
[1735588504098,1.5924,196.15,196.1,8.01352952]
[1735588504299,3.12,196.15,196.1,8.01352952]
[1735588505701,3.12,196.15,196.1,10.56632952]
[1735588505900,3.12,196.15,196.1,8.01352952]
[1735588507003,3.12,196.15,196.11,2.5526]
[1735588508200,3.12,196.16,196.11,2.5526]
[1735588508799,2.552,196.17,196.12,8.01352952]
[1735588509003,3.12,196.19,196.14,10.56582952]
[1735588509395,1.5184,196.27,196.16,8.01352952]
[1735588509597,2.5511,196.24,196.18,8.01352952]
[1735588510703,2.5511,196.24,196.19,2.5516]
[1735588511204,5.6711,196.24,196.19,2.5516]
[1735588511396,3.12,196.23,196.2,2.5515]
[1735588512501,2.5509,196.25,196.21,2.5514]
[1735588513300,5.6708,196.26,196.22,2.5513]
[1735588513501,2.5508,196.26,196.22,10.56482952]
[1735588513696,5.6708,196.26,196.22,10.56482952]
[1735588515001,1.5184,196.27,196.24,2.551]
[1735588515203,3.12,196.27,196.24,2.551]
[1735588516803,58.1562,196.47,196.26,8.01352952]
[1735588517004,3.12,196.36,196.3,8.01352952]
[1735588518809,20.89416804,196.37,196.3,8.01352952]
[1735588519508,31.45719756,196.37,196.32,2.5499]
[1735588519704,31.45719756,196.37,196.3,8.01352952]
[1735588519908,31.45719756,196.37,196.31,2.5501]
[1735588520805,8.01352952,196.35,196.23,7.809]
[1735588521003,8.01352952,196.35,196.27,8.01352952]
[1735588521309,2.5499,196.33,196.23,7.809]
[1735588521608,2.5499,196.33,196.27,8.01352952]
[1735588521908,2.5499,196.33,196.27,10.56402952]
[1735588524207,2.55,196.32,196.23,4.689]
[1735588524409,8.01352952,196.31,196.24,8.01352952]
[1735588524912,2.5503,196.3,196.24,10.56442952]
[1735588525108,3.1,196.29,196.24,10.56442952]
[1735588527116,2.5509,196.25,196.19,2.5516]
[1735588527315,11.11352952,196.24,196.18,8.01352952]
[1735588527712,11.11352952,196.24,196.16,28.02131948]
[1735588527913,11.11352952,196.24,196.16,36.034849]
[1735588528317,11.11352952,196.24,196.16,28.02131948]
[1735588528511,11.11352952,196.24,196.18,8.01352952]
[1735588529118,11.11352952,196.24,196.17,8.01352952]
[1735588529721,2.5512,196.23,196.17,8.01352952]
[1735588530215,2.5512,196.23,196.16,2.552]
[1735588530409,3.1,196.24,196.16,2.552]
[1735588530611,3.1,196.24,196.14,15.0384888]
[1735588530810,15.5861888,196.24,196.14,2.5523]
[1735588531708,2.5514,196.21,196.14,2.5523]
[1735588532815,2.5514,196.21,196.15,2.5522]
[1735588534624,3.12,196.2,196.13,1.5345]
[1735588535413,3.12,196.2,196.15,2.5521]
[1735588536427,3.12,196.2,196.1,28.02131948]
[1735588536619,12.4861888,196.24,196.1,40.50750828]
[1735588536818,3.12,196.23,196.13,12.4861888]
[1735588537821,2.5514,196.21,196.15,2.5521]
[1735588538022,3.12,196.23,196.13,12.4861888]
[1735588538216,5.6713,196.23,196.16,2.552]
[1735588538520,3.12,196.23,196.16,2.552]
[1735588538720,3.12,196.23,196.13,12.4861888]
[1735588539223,3.1,196.22,196.14,4.51566791]
[1735588539418,3.1,196.21,196.15,4.51650496]
[1735588539625,3.1,196.21,196.18,2.5517]
[1735588540122,3.1,196.21,196.13,12.4861888]
[1735588540324,3.1,196.21,196.19,2.5517]
[1735588541119,3.1,196.2,196.19,2.5517]
[1735588541520,3.1,196.2,196.18,2.5518]
[1735588541924,3.1,196.2,196.16,2.552]
[1735588544726,3.1,196.2,196.17,2.5519]
[1735588545727,3.1,196.2,196.18,2.5517]
[1735588546426,12.4861888,196.24,196.19,2.5516]
[1735588546628,3.1,196.23,196.19,2.5516]
[1735588547823,3.1,196.23,196.13,1.5509]
[1735588548026,3.1,196.23,196.18,2.5518]
[1735588550230,7.99391757,196.2,196.18,2.5518]
[1735588551127,7.99391757,196.2,196.13,1.5509]
[1735588551128,7.99391757,196.2,196.16,2.5519]
[1735588552227,7.99391757,196.18,196.11,1.5279]
[1735588552525,7.99391757,196.14,196.08,7.00532987]
[1735588552725,7.99391757,196.12,196.09,8.57670582]
[1735588552929,3.1,196.11,196.06,28.02131948]
[1735588553129,3.1,196.11,196.07,8.57734863]
[1735588553329,3.1,196.11,196.06,28.02131948]
[1735588553534,3.1,196.11,196.09,2.553]
[1735588557230,7.99391757,196.1,196.05,1.592]
[1735588557937,7.99391757,196.1,196.06,2.5534]
[1735588558835,7.99391757,196.08,196.05,2.5535]
[1735588559637,7.99391757,196.08,196.04,2.5536]
[1735588560541,2.5522,196.15,196.07,2.5532]
[1735588560734,7.99391757,196.1,196.07,2.5532]
[1735588560938,3.1,196.09,196.07,2.5532]
[1735588561138,3.1,196.09,196.03,7.99391757]
[1735588561336,7.99391757,196.1,196.06,2.5533]
[1735588561638,3.1,196.09,196.06,2.5533]
[1735588561839,3.1,196.09,196.07,2.5532]
[1735588564246,3.1,196.09,196.08,2.5531]
[1735588564538,3.1,196.09,196.03,7.99391757]
[1735588565438,3.1,196.09,196.07,2.5532]
[1735588567045,7.99391757,196.11,196.07,2.5532]
[1735588567249,3.1,196.1,196.07,2.5532]
[1735588567948,7.99391757,196.09,196.05,2.5535]
[1735588568449,7.99391757,196.09,196.02,42.7948151]
[1735588568648,7.99391757,196.09,196.06,2.5534]
[1735588569051,7.99391757,196.09,196.02,42.7948151]
[1735588569451,7.99391757,196.07,196.02,42.7948151]
[1735588569651,7.99391757,196.03,195.97,7.99391757]
[1735588569844,1.5602,196.21,195.97,7.99391757]
[1735588569845,7.99391757,196.01,195.98,8.57612939]
[1735588570052,3.1,196.0,195.97,2.5544]
[1735588570747,7.99391757,195.99,195.97,2.5544]
[1735588571051,7.99391757,195.99,195.94,7.00532987]
[1735588571351,7.99391757,195.97,195.94,7.00532987]
[1735588571549,7.99391757,195.95,195.91,2.5553]
[1735588571749,7.99391757,195.93,195.89,7.00532987]
[1735588571944,3.1,195.92,195.9,8.57886775]
[1735588572146,3.1,195.92,195.89,7.00532987]
[1735588572653,3.1,195.92,195.87,7.99391757]
[1735588572951,7.99391757,195.91,195.87,2.5557]
[1735588573546,3.1,195.92,195.86,1.5388]
[1735588573853,3.1,195.92,195.88,2.5557]
[1735588580855,3.1,195.92,195.86,1.5388]
[1735588581054,3.1,195.92,195.89,2.5556]
[1735588581255,7.99391757,195.95,195.87,7.99391757]
[1735588581455,3.1,195.94,195.89,7.99391757]
[1735588581758,7.99391757,195.93,195.87,7.99391757]
[1735588582150,7.99391757,195.93,195.86,1.5388]
[1735588582353,7.99391757,195.93,195.82,8.51942518]
[1735588582662,7.99391757,195.93,195.85,7.99391757]
[1735588582963,7.99391757,195.93,195.88,2.5556]
[1735588583157,7.99391757,195.93,195.87,7.99391757]
[1735588583356,3.1,195.92,195.89,7.99391757]
[1735588584059,3.1,195.92,195.91,2.5553]
[1735588594160,9.53721757,195.98,195.93,2.555]
[1735588594362,1.5566,196.09,195.92,7.99391757]
[1735588594559,7.99391757,196.0,195.92,7.99391757]
[1735588594765,3.1,195.99,195.94,2.5549]
[1735588594959,3.1,195.99,195.92,7.99391757]
[1735588595359,3.1,195.99,195.94,2.5549]
[1735588595664,7.99391757,196.0,195.92,7.99391757]
[1735588595864,3.1,195.98,195.95,2.5548]
[1735588596063,3.1,195.98,195.92,7.99391757]
[1735588598467,3.1,195.98,195.95,2.5547]
[1735588599764,11.09391757,195.98,195.95,2.5547]
[1735588599959,11.09391757,195.98,195.93,2.555]
[1735588600166,7.99391757,195.94,195.89,3.0956]
[1735588600358,7.99391757,195.94,195.9,4.53279625]
[1735588600558,7.99391757,195.94,195.89,3.0956]
[1735588600761,7.99391757,195.94,195.91,2.5552]
[1735588600955,3.1,195.93,195.89,3.0956]
[1735588601157,3.1,195.93,195.9,8.56565572]
[1735588601362,3.1,195.93,195.92,2.5552]
[1735588601664,1.1553,195.93,195.92,2.5552]
[1735588601861,1.1553,195.93,195.91,2.5552]
[1735588602060,1.1553,195.93,195.89,11.08951757]
[1735588602265,1.1553,195.93,195.9,8.56935946]
[1735588602466,1.1553,195.93,195.92,2.5552]
[1735588604372,9.14921757,195.93,195.9,2.5554]
[1735588604566,9.14921757,195.93,195.89,28.02131948]
[1735588605572,7.99391757,195.91,195.89,28.02131948]
[1735588606163,7.99391757,195.91,195.88,7.00532987]
[1735588606468,7.99391757,195.91,195.88,9.56102987]
[1735588606664,9.14921757,195.93,195.88,9.56102987]
[1735588607171,9.14921757,195.93,195.88,2.5557]
[1735588607769,9.14921757,195.93,195.87,7.00532987]
[1735588608074,9.14921757,195.93,195.89,2.5556]
[1735588609976,1.1553,195.93,195.87,36.01523705]
[1735588610173,1.1553,195.93,195.88,8.59952963]
[1735588610373,7.99391757,195.95,195.89,12.54767674]
[1735588610576,3.1,195.94,195.89,7.99391757]
[1735588611176,7.99391757,195.95,195.91,2.5553]
[1735588611477,7.99391757,195.93,195.87,36.01523705]
[1735588611776,7.99391757,195.93,195.88,4.05430052]
[1735588611975,7.99391757,195.93,195.89,8.61769651]
[1735588612170,7.99391757,195.93,195.87,7.99391757]
[1735588612370,7.99391757,195.93,195.88,8.61958041]
[1735588612566,7.99391757,195.93,195.89,11.18477763]
[1735588612866,7.99391757,195.93,195.89,2.5556]
[1735588613674,7.99391757,195.93,195.9,8.63502824]
[1735588613873,7.99391757,195.93,195.89,2.5556]
[1735588614065,7.99391757,195.93,195.9,8.6351139]
[1735588614269,7.99391757,195.93,195.89,2.5556]
[1735588614572,7.99391757,195.93,195.9,8.64537172]
[1735588614770,7.99391757,195.93,195.89,2.5556]
[1735588615072,7.99391757,195.93,195.9,8.64570448]
[1735588615271,7.99391757,195.93,195.89,2.5556]
[1735588615272,7.99391757,195.93,195.91,4.578217]
[1735588615471,7.99391757,195.93,195.89,2.5556]
[1735588615684,7.99391757,195.93,195.9,8.65037354]
[1735588615877,7.99391757,195.93,195.91,8.65026684]
[1735588616076,7.99391757,195.93,195.92,8.65026684]
[1735588617272,3.1,195.94,195.92,8.65026684]
[1735588617575,3.1,195.94,195.87,7.99391757]
[1735588618077,7.99391757,195.93,195.87,7.99391757]
[1735588618577,7.99391757,195.93,195.88,2.5556]
[1735588619374,7.99391757,195.93,195.89,8.65314386]
[1735588619574,7.99391757,195.93,195.9,8.65314386]
[1735588619780,7.99391757,195.93,195.9,4.58215808]
[1735588619981,7.99391757,195.93,195.91,4.58215808]
[1735588620176,3.1,195.94,195.91,2.5552]
[1735588620476,3.1,195.93,195.92,8.65097023]
[1735588621172,7.99391757,195.97,195.89,7.99391757]
[1735588621377,3.1,195.96,195.94,2.5549]
[1735588624074,3.1,195.96,195.87,7.00532987]
[1735588624075,7.99391757,195.95,195.91,2.5553]
[1735588624380,7.99391757,195.93,195.87,7.00532987]
[1735588624577,7.99391757,195.93,195.88,8.65146586]
[1735588624779,7.99391757,195.93,195.89,8.65146586]
[1735588624979,7.99391757,195.93,195.9,8.65146586]
[1735588625179,7.99391757,195.93,195.89,2.5555]
[1735588625180,7.99391757,195.93,195.91,4.58177133]
[1735588625478,7.99391757,195.93,195.89,2.5555]
[1735588625678,7.99391757,195.93,195.9,8.65302564]
[1735588625873,7.99391757,195.93,195.91,4.58209533]
[1735588626080,7.99391757,195.93,195.89,2.5555]
[1735588626282,7.99391757,195.93,195.9,8.65282018]
[1735588626476,7.99391757,195.93,195.91,8.65282018]
[1735588626779,10.54901757,195.93,195.87,2.5557]
[1735588626983,10.54901757,195.93,195.88,8.65352801]
[1735588627285,7.99391757,195.91,195.89,8.65352801]
[1735588627474,3.1,195.9,195.88,2.5557]
[1735588627672,3.1,195.9,195.89,4.58191628]
[1735588627877,3.1,195.9,195.89,8.65268531]
[1735588628078,3.1,195.9,195.88,2.5557]
[1735588628283,3.1,195.9,195.89,8.65295803]
[1735588629082,3.1,195.9,195.89,11.20855803]
[1735588630879,3.1,195.9,195.89,11.20543138]
[1735588631389,3.1,195.94,195.93,2.555]
[1735588632284,3.1,195.94,195.92,2.5552]
[1735588632790,3.1,195.94,195.89,7.99391757]
[1735588633088,3.1,195.94,195.91,2.5553]
[1735588633282,3.1,195.94,195.92,4.57977517]
[1735588633482,3.1,195.94,195.91,2.5553]
[1735588633683,7.99391757,195.93,195.89,2.5555]
[1735588633883,7.99391757,195.93,195.9,8.64960733]
[1735588634180,7.99391757,195.93,195.89,2.5555]
[1735588634181,7.99391757,195.93,195.91,8.64960733]
[1735588634376,7.99391757,195.93,195.87,7.99391757]
[1735588634584,7.99391757,195.93,195.9,2.5554]
[1735588634781,3.1,195.94,195.91,8.64867284]
[1735588634982,3.1,195.94,195.92,8.64867284]
[1735588635285,3.1,195.94,195.93,4.5787717]
[1735588635485,3.1,195.94,195.93,8.64653387]
[1735588635785,3.1,195.94,195.93,4.5787717]
[1735588636192,3.1,195.94,195.93,8.64611767]
[1735588637090,3.1,195.94,195.93,4.06734597]
[1735588637293,3.1,195.94,195.93,8.6442786]
[1735588637490,3.1,195.94,195.93,4.57693263]
[1735588637686,3.1,195.94,195.93,8.64324443]
[1735588638391,7.99391757,195.97,195.93,11.19834443]
[1735588638591,3.1,195.95,195.93,2.5551]
[1735588639382,11.09391757,195.95,195.88,28.02131948]
[1735588639583,7.99391757,195.93,195.89,8.64466419]
[1735588639789,11.09391757,195.95,195.9,8.64466419]
[1735588640090,11.09391757,195.95,195.91,8.64466419]
[1735588640290,11.09391757,195.95,195.92,8.64466419]
[1735588640490,11.09391757,195.95,195.93,4.577648]
[1735588640693,1.5982,196.01,195.87,28.02131948]
[1735588640888,11.09391757,196.0,195.96,2.5547]
[1735588641696,3.1,195.99,195.96,2.5547]
[1735588641888,7.99391757,195.98,195.9,7.99391757]
[1735588642090,7.99391757,195.94,195.91,8.64152254]
[1735588642289,3.1,195.93,195.92,8.64152254]
[1735588642489,11.09391757,195.93,195.92,8.64152254]
[1735588642689,11.09391757,195.93,195.9,7.00532987]
[1735588642890,3.1,195.93,195.91,8.6479922]
[1735588643093,3.1,195.93,195.87,7.00532987]
[1735588643293,7.99391757,195.91,195.88,8.64609567]
[1735588643595,7.99391757,195.91,195.87,7.00532987]
[1735588643596,7.99391757,195.91,195.89,8.64609567]
[1735588643797,7.99391757,195.91,195.9,8.64609567]
[1735588646293,7.99391757,195.91,195.9,8.64756695]
[1735588646796,7.99391757,195.91,195.9,8.64980906]
[1735588647098,4.6283,195.94,195.9,8.64980906]
[1735588647399,4.6283,195.94,195.91,8.64980906]
[1735588647695,4.6283,195.94,195.92,4.5803892]
[1735588647895,4.6283,195.94,195.87,7.99391757]
[1735588648089,4.6283,195.94,195.88,8.65210142]
[1735588648290,4.6283,195.94,195.89,8.65210142]
[1735588648491,4.6283,195.94,195.9,8.65210142]
[1735588648685,7.99391757,195.93,195.91,8.65210142]
[1735588648884,7.99391757,195.93,195.92,8.65210142]
[1735588649291,7.99391757,195.93,195.92,8.6527361]
[1735588652300,7.99391757,195.93,195.9,2.5554]
[1735588652600,7.99391757,195.93,195.91,8.64894927]
[1735588652804,7.99391757,195.93,195.92,8.64894927]
[1735588655807,1.4817,196.01,195.92,4.57988999]
[1735588656003,1.4817,196.01,195.93,4.06608529]
[1735588656304,1.4817,196.01,195.94,8.64597528]
[1735588656503,1.4817,196.01,195.95,8.64597528]
[1735588656704,1.4817,196.01,195.88,28.02131948]
[1735588656900,1.4817,196.01,195.89,15.64745562]
[1735588657102,7.99391757,195.99,195.95,2.5548]
[1735588657907,7.99391757,195.97,195.92,2.5551]
[1735588658204,7.99391757,195.95,195.93,8.636687]
[1735588658400,7.99391757,195.95,195.94,4.57339783]
[1735588658707,7.99391757,195.95,195.94,8.63706848]
[1735588659205,7.99391757,195.97,195.94,8.63706848]
[1735588659396,7.99391757,195.97,195.92,2.5551]
[1735588659601,7.99391757,195.97,195.93,8.63533581]
[1735588659903,7.99391757,195.97,195.94,8.63533581]
[1735588660102,7.99391757,195.97,195.92,2.5551]
[1735588660305,7.99391757,195.97,195.93,8.63511814]
[1735588660507,7.99391757,195.97,195.94,8.63511814]
[1735588660802,7.99391757,195.97,195.93,2.555]
[1735588660995,2.5543,195.99,195.94,8.63559193]
[1735588661195,7.99391757,195.97,195.95,4.57238218]
[1735588661395,7.99391757,195.97,195.93,2.555]
[1735588661705,7.99391757,195.97,195.94,8.63505903]
[1735588661906,7.99391757,195.97,195.95,4.57238322]
[1735588662206,7.99391757,195.97,195.93,2.555]
[1735588662405,7.99391757,195.97,195.94,8.63473381]
[1735588662605,7.99391757,195.97,195.93,2.555]
[1735588662801,7.99391757,195.97,195.94,8.63401384]
[1735588663007,7.99391757,195.97,195.93,2.555]
[1735588663207,7.99391757,195.97,195.94,8.63221733]
[1735588663407,7.99391757,195.97,195.93,2.555]
[1735588663608,7.99391757,195.97,195.94,8.63219554]
[1735588663808,7.99391757,195.97,195.93,2.555]
[1735588664111,7.99391757,195.97,195.94,8.63167675]
[1735588664311,7.99391757,195.97,195.93,2.555]
[1735588664501,7.99391757,195.97,195.94,4.57082878]
[1735588664705,7.99391757,195.97,195.93,2.555]
[1735588664909,7.99391757,195.97,195.94,8.63164998]
[1735588665110,7.99391757,195.97,195.93,2.555]
[1735588665311,7.99391757,195.97,195.94,8.63177473]
[1735588665512,7.99391757,195.97,195.93,2.555]
[1735588665810,7.99391757,195.97,195.94,8.63168057]
[1735588666009,7.99391757,195.97,195.9,7.99391757]
[1735588666314,7.99391757,195.97,195.95,2.5548]
[1735588667413,7.99391757,195.99,195.95,2.5548]
[1735588668814,7.99391757,195.99,195.9,7.99391757]
[1735588669015,7.99391757,195.99,195.97,2.5545]
[1735588669315,3.1,195.98,195.97,2.5545]
[1735588671417,7.99391757,195.99,195.97,2.5545]
[1735588671619,3.1,195.98,195.97,2.5545]
[1735588672912,30.3791112,196.06,195.92,7.99391757]
[1735588673116,7.99391757,196.01,196.0,2.5541]
[1735588673717,11.09391757,196.01,196.0,2.5541]
[1735588674922,11.09391757,196.01,195.99,2.5543]
[1735588676126,3.1,196.0,195.99,2.5543]
[1735588676521,7.99391757,196.01,195.99,2.5543]